bitfinex/quotes_SOLUSD_20260115
["timestamp","ask_amount","ask_price","bid_price","bid_amount"]
[1768503191426,30.64373047,141.67,141.63,1.70111907]
[1768503191606,5.93842943,141.65,141.61,4.1931704]
[1768503192899,7.06015249,141.64,141.6,11.51503742]
[1768503193341,7.06015249,141.64,141.61,1.73111907]
[1768503195334,7.06015249,141.64,141.61,5.92428947]
[1768503197029,8.80517163,141.65,141.61,12.98571307]
[1768503197329,8.80517163,141.65,141.61,11.47143224]
[1768503198805,7.31929586,141.66,141.63,1.73111907]
[1768503199005,7.31929586,141.66,141.63,1.70111907]
[1768503199629,0.26,141.66,141.63,1.70111907]
[1768503200332,11.48297969,141.67,141.63,1.70111907]
[1768503200720,9.0634723,141.68,141.64,2.67888957]
[1768503200919,8.74466322,141.69,141.65,1.78316254]
[1768503201117,11.42355279,141.69,141.65,1.75316254]
[1768503202628,4.36570619,141.68,141.64,2.67888957]
[1768503203013,4.36570619,141.68,141.64,4.46205211]
[1768503203014,11.42407844,141.68,141.64,4.46205211]
[1768503203738,11.42407844,141.68,141.65,1.78316254]
[1768503204523,9.73726182,141.68,141.65,1.78316254]
[1768503204939,7.05837225,141.68,141.65,1.78316254]
[1768503205740,7.05771944,141.69,141.66,1.84324956]
[1768503206037,7.05717735,141.7,141.67,4.52213913]
[1768503206239,7.05717735,141.7,141.68,1.84324956]
[1768503206735,22.32970117,141.74,141.69,1.84324956]
[1768503206920,22.58970117,141.74,141.69,4.52213913]
[1768503207117,7.05630846,141.72,141.69,1.84324956]
[1768503208234,2.67888957,141.71,141.67,1.84324956]
[1768503210144,7.05716302,141.7,141.67,1.84324956]
[1768503210919,9.73558106,141.71,141.67,1.84324956]
[1768503211218,20.77718826,141.74,141.7,1.84324956]
[1768503211423,22.58949749,141.74,141.7,1.84324956]
[1768503211620,27.37373187,141.73,141.7,1.84324956]
[1768503211931,4.4911988,141.72,141.68,1.84324956]
[1768503212123,8.86887807,141.72,141.68,1.84324956]
[1768503212325,11.54776764,141.72,141.68,1.84324956]
[1768503212544,8.86887807,141.72,141.68,1.84324956]
[1768503212743,11.54776764,141.72,141.68,1.84324956]
[1768503213043,8.86887807,141.72,141.68,1.84324956]
[1768503213219,11.54776764,141.72,141.68,1.84324956]
[1768503215431,1.81230923,141.71,141.67,4.52213913]
[1768503215642,4.4911988,141.71,141.67,1.84324956]
[1768503217139,7.05716302,141.7,141.67,1.84324956]
[1768503218552,9.73605259,141.7,141.67,1.84324956]
[1768503218757,7.05716302,141.7,141.67,1.84324956]
[1768503220154,7.05716302,141.7,141.67,1.81324956]
[1768503221933,7.05687388,141.71,141.68,1.84324956]
[1768503223152,7.05640468,141.72,141.69,1.84324956]
[1768503223456,7.05640468,141.72,141.69,1.81324956]
[1768503224537,7.05640468,141.72,141.69,2.67888957]
[1768503225228,7.05640468,141.72,141.69,4.52213913]
[1768503225431,7.05640468,141.72,141.7,1.84324956]
[1768503227056,7.05640468,141.72,141.7,1.81324956]
[1768503228657,8.86820843,141.73,141.7,1.81324956]
[1768503229440,7.0558992,141.73,141.7,1.81324956]
[1768503231658,11.74655233,141.74,141.71,1.86946524]
[1768503231965,11.74655233,141.74,141.71,0.0835745]
[1768503232367,1.87115181,141.71,141.68,0.26]
[1768503232550,1.87115181,141.71,141.68,2.93888957]
[1768503232754,1.87115181,141.72,141.68,0.26]
[1768503232953,4.55004138,141.7,141.66,7.05868045]
[1768503233146,4.55004138,141.7,141.67,7.05861474]
[1768503233444,1.87115181,141.72,141.67,9.73750431]
[1768503233650,1.87115181,141.72,141.68,2.67888957]
[1768503234051,1.87115181,141.72,141.68,4.54835481]
[1768503234443,8.92739339,141.72,141.68,4.54835481]
[1768503234982,1.87115181,141.68,141.64,5.8]
[1768503235269,1.21619834,141.68,141.64,7.0600247]
[1768503235439,24.9566593,141.72,141.66,1.86946524]
[1768503235867,2.67888957,141.7,141.66,1.86946524]
[1768503236459,2.67888957,141.69,141.66,1.86946524]
[1768503237168,4.55004138,141.69,141.66,1.86946524]
[1768503237742,11.60772901,141.69,141.66,1.86946524]
[1768503238400,11.60772901,141.69,141.64,4.54835481]
[1768503238570,11.60772901,141.69,141.65,1.86946524]
[1768503239059,8.92883944,141.69,141.65,1.86946524]
[1768503241056,26.57299216,141.69,141.65,1.86946524]
[1768503241250,8.92883944,141.69,141.65,1.86946524]
[1768503243280,7.05768763,141.69,141.67,1.86946524]
[1768503244151,1.87115181,141.68,141.64,11.86830883]
[1768503244347,1.87115181,141.68,141.65,1.86946524]
[1768503245167,8.92980925,141.67,141.64,2.12946524]
[1768503245379,8.92980925,141.67,141.64,5.8]
[1768503245380,11.60869882,141.67,141.64,5.8]
[1768503245553,1.87115181,141.66,141.62,2.12946524]
[1768503245907,1.87115181,141.66,141.62,4.54835481]
[1768503247286,8.93060882,141.66,141.62,4.54835481]
[1768503250183,8.93060882,141.66,141.62,10.34835481]
[1768503250480,8.93060882,141.66,141.62,17.40939884]
[1768503251176,8.93060882,141.66,141.62,10.34835481]
[1768503251476,7.05945701,141.66,141.63,1.86946524]
[1768503251981,7.05945701,141.66,141.63,4.54835481]
[1768503252278,7.05945701,141.66,141.63,1.86946524]
[1768503252460,7.05945701,141.66,141.63,4.54835481]
[1768503252975,22.45479667,141.69,141.64,2.67888957]
[1768503253171,22.45479667,141.69,141.65,1.86946524]
[1768503254084,1.87115181,141.68,141.65,1.86946524]
[1768503254491,8.92948345,141.68,141.65,1.86946524]
[1768503255090,7.31786553,141.69,141.66,1.86946524]
[1768503255387,11.86790691,141.69,141.66,1.86946524]
[1768503256477,9.18901734,141.69,141.66,1.86946524]
[1768503256791,8.92901734,141.69,141.66,1.86946524]
[1768503257197,26.57317006,141.69,141.66,1.86946524]
[1768503258998,30.75653647,141.69,141.64,4.44336641]
[1768503260997,30.75653647,141.69,141.65,1.84974147]
[1768503262092,7.05865744,141.67,141.65,1.84974147]
[1768503265309,1.74757594,141.66,141.64,5.8]
[1768503265506,1.74757594,141.66,141.61,1.91725253]
[1768503265507,1.74757594,141.65,141.61,1.91725253]
[1768503265692,1.74757594,141.65,141.61,7.56061894]
[1768503266513,1.74757594,141.65,141.61,14.62213811]
[1768503267017,8.80726449,141.65,141.62,4.18336641]
[1768503268194,8.80726449,141.65,141.62,6.10061894]
[1768503272695,1.74757594,141.65,141.62,6.10061894]
[1768503273816,2.14723414,141.68,141.65,1.78921629]
[1768503274017,10.73987499,141.71,141.68,1.78921629]
[1768503274224,7.05686577,141.71,141.68,5.9725827]
[1768503275124,7.05686577,141.71,141.69,4.18336641]
[1768503278742,1.88723414,141.71,141.62,1.2]
[1768503279020,4.18336641,141.69,141.64,1.78921629]
[1768503279214,1.88723414,141.68,141.64,5.9725827]
[1768503279412,1.88723414,141.67,141.62,6.2125827]
[1768503279613,1.88723414,141.66,141.62,6.2125827]
[1768503280220,1.88723414,141.66,141.63,4.18336641]
[1768503281331,7.05965407,141.65,141.63,4.18336641]
[1768503281519,8.94653679,141.66,141.63,4.18336641]
[1768503281721,8.94653679,141.66,141.64,4.18336641]
[1768503281921,7.05815923,141.68,141.65,5.9725827]
[1768503282126,7.05815923,141.68,141.66,5.9725827]
[1768503282315,7.05815923,141.68,141.66,4.18336641]
[1768503282839,7.05783483,141.69,141.67,4.18336641]
[1768503283140,7.05783483,141.69,141.66,1.78921629]
[1768503283141,7.05783483,141.69,141.66,5.9725827]
[1768503287437,7.05783483,141.69,141.66,1.78921629]
[1768503288136,7.05783483,141.69,141.66,5.9725827]
[1768503288465,7.05733555,141.7,141.68,5.9725827]
[1768503288631,8.94456969,141.7,141.66,1.78921629]
[1768503288818,8.94456969,141.7,141.66,5.9725827]
[1768503290524,8.94456969,141.7,141.66,1.78921629]
[1768503291448,8.94456969,141.7,141.65,12.68301708]
[1768503291449,1.74945412,141.69,141.65,2.98806781]
[1768503291648,1.74945412,141.69,141.66,1.78806781]
[1768503292240,1.74945412,141.68,141.65,1.2]
[1768503292451,1.74945412,141.69,141.65,2.98806781]
[1768503292656,1.74945412,141.68,141.65,1.2]
[1768503293754,8.80796232,141.68,141.65,1.2]
[1768503297246,8.80796232,141.68,141.64,7.41143422]
[1768503297666,8.80796232,141.68,141.65,1.78806781]
[1768503300985,8.80712637,141.69,141.66,1.78806781]
[1768503301142,1.74945412,141.71,141.67,1.78806781]
[1768503301676,1.74945412,141.71,141.66,5.97143422]
[1768503302041,1.74945412,141.69,141.66,1.78806781]
[1768503302659,1.74945412,141.67,141.63,1.2]
[1768503302849,1.74945412,141.66,141.63,1.2]
[1768503303066,1.74945412,141.66,141.63,8.84862465]
[1768503303571,1.74945412,141.67,141.63,8.84862465]
[1768503303862,8.80831908,141.67,141.63,8.84862465]
[1768503308348,1.98945412,141.69,141.64,1.78806781]
[1768503308547,1.98945412,141.69,141.66,1.78806781]
[1768503308748,1.74945412,141.69,141.66,1.78806781]
[1768503308943,8.80673231,141.7,141.66,1.78806781]
[1768503309263,12.48796352,141.73,141.68,1.78806781]
[1768503309442,1.74945412,141.72,141.68,1.78806781]
[1768503309646,1.74945412,141.72,141.68,0.24]
[1768503309969,1.74945412,141.72,141.68,13.26950507]
[1768503310168,8.80567039,141.72,141.68,13.26950507]
[1768503311069,1.74945412,141.72,141.69,5.97143422]
[1768503311373,1.74945412,141.73,141.7,1.78806781]
[1768503311545,1.94945412,141.74,141.7,1.78806781]
[1768503311746,9.00469778,141.74,141.7,1.78806781]
[1768503311946,1.74945412,141.73,141.7,1.78806781]
[1768503312165,8.80517698,141.73,141.7,1.78806781]
[1768503312874,8.80517698,141.73,141.69,8.8457016]
[1768503313058,8.80517698,141.73,141.69,13.02906801]
[1768503313263,8.80517698,141.73,141.69,5.97143422]
[1768503313450,1.74945412,141.72,141.69,0.24]
[1768503313771,8.80517698,141.73,141.69,8.84561969]
[1768503318364,8.80517698,141.73,141.69,13.0289861]
[1768503319256,1.74945412,141.72,141.69,5.97143422]
[1768503319555,1.74945412,141.72,141.69,4.46373696]
[1768503320476,1.74945412,141.73,141.69,11.52125225]
[1768503320677,1.74945412,141.73,141.7,4.46373696]
[1768503321056,7.25528998,141.74,141.7,4.46373696]
[1768503321057,9.16605298,141.74,141.7,4.46373696]
[1768503322270,9.16605298,141.74,141.71,2.67566915]
[1768503323382,1.910763,141.75,141.72,4.53414992]
[1768503323883,8.96540207,141.76,141.73,4.53414992]
[1768503324291,1.910763,141.76,141.73,4.53414992]
[1768503326678,0.2,141.77,141.75,2.67566915]
[1768503327764,0.2,141.78,141.76,4.44566397]
[1768503328260,0.2,141.78,141.76,2.67566915]
[1768503328462,2.0784423,141.8,141.77,2.67566915]
[1768503328676,2.0784423,141.8,141.76,4.44566397]
[1768503329009,0.2,141.8,141.79,2.67566915]
[1768503329285,1.8784423,141.82,141.79,4.44566397]
[1768503329500,1.8784423,141.83,141.8,2.67566915]
[1768503330796,8.92921789,141.83,141.8,2.67566915]
[1768503330976,1.8784423,141.83,141.8,2.67566915]
[1768503331680,8.92914381,141.83,141.79,9.06265476]
[1768503331995,8.92914381,141.83,141.8,2.67566915]
[1768503332880,1.8784423,141.83,141.8,2.67566915]
[1768503333199,1.8784423,141.83,141.8,4.44566397]
[1768503333613,7.25035715,141.84,141.81,1.76999482]
[1768503333979,9.12879945,141.84,141.81,1.76999482]
[1768503334185,9.12879945,141.84,141.81,1.73999482]
[1768503334614,9.12879945,141.84,141.79,2.91566915]
[1768503335419,1.8784423,141.83,141.8,2.67566915]
[1768503336083,1.8784423,141.83,141.8,4.44566397]
[1768503336288,9.12879945,141.84,141.81,2.67566915]
[1768503336485,0.2,141.84,141.81,4.44566397]
[1768503336706,0.2,141.84,141.82,2.67566915]
[1768503337001,0.2,141.84,141.82,4.44566397]
[1768503337211,0.2,141.84,141.82,1.76999482]
[1768503337717,7.14938742,141.86,141.83,4.44566397]
[1768503338381,0.1,141.86,141.83,4.44566397]
[1768503338589,0.1,141.86,141.84,4.44566397]
[1768503339009,0.1,141.86,141.84,3.76701667]
[1768503342002,0.1,141.86,141.84,1.76999482]
[1768503342193,0.1,141.86,141.84,4.44566397]
[1768503343311,0.1,141.86,141.84,1.76999482]
[1768503343603,0.1,141.86,141.84,2.67854638]
[1768503343794,0.1,141.86,141.84,2.67566915]
[1768503345909,0.1,141.86,141.83,7.32798917]
[1768503346219,0.1,141.86,141.84,2.67566915]
[1768503346406,0.1,141.86,141.85,0.24]
[1768503346597,0.1,141.87,141.85,7.04970039]
[1768503346792,0.1,141.87,141.85,6.03690194]
[1768503346995,0.1,141.87,141.85,0.24]
[1768503347716,1.9784423,141.87,141.85,0.24]
[1768503348011,1.9784423,141.87,141.85,7.28970038]
[1768503349886,1.9784423,141.87,141.85,8.48970038]
[1768503350092,1.9784423,141.87,141.85,1.44]
[1768503350295,1.9784423,141.87,141.85,1.2]
[1768503354118,1.9784423,141.87,141.86,7.04920344]
[1768503356193,1.9784423,141.87,141.85,7.04970038]
[1768503358427,0.1,141.88,141.85,7.04970038]
[1768503358648,0.1,141.88,141.84,1.2]
[1768503358817,2.67566915,141.87,141.81,5.76983257]
[1768503359018,0.1,141.88,141.83,2.67566915]
[1768503359827,0.1,141.88,141.84,7.05018449]
[1768503360026,2.77566915,141.88,141.84,7.05018449]
[1768503360327,1.7376734,141.87,141.84,7.05018449]
[1768503360939,1.7376734,141.87,141.83,7.05069449]
[1768503361533,1.7376734,141.86,141.83,7.05069449]
[1768503363734,4.41334255,141.86,141.82,1.2]
[1768503363937,1.7376734,141.85,141.82,1.2]
[1768503364135,1.7376734,141.85,141.81,20.96266159]
[1768503364341,1.7376734,141.85,141.81,23.63833074]
[1768503364539,1.7376734,141.85,141.82,2.67566915]
[1768503364851,0.1,141.88,141.85,1.89416342]
[1768503365041,0.1,141.88,141.85,4.56983257]
[1768503366073,0.1,141.88,141.85,11.61929925]
[1768503367038,0.07485335,141.92,141.87,2.67566915]
[1768503367243,7.12125317,141.92,141.88,4.56983257]
[1768503367454,0.07485335,141.91,141.87,4.56983257]
[1768503368262,0.07485335,141.91,141.87,11.61823259]
[1768503368646,0.07485335,141.91,141.87,8.94256344]
[1768503368838,0.07485335,141.91,141.87,11.61823259]
[1768503369557,0.07485335,141.91,141.88,1.89416342]
[1768503370262,0.07485335,141.91,141.88,8.94236404]
[1768503370853,0.07084942,141.9,141.87,0.24]
[1768503372661,0.07084942,141.9,141.86,8.94335272]
[1768503372856,0.07084942,141.9,141.85,4.56983257]
[1768503373165,0.06066068,141.87,141.83,1.89416342]
[1768503373367,0.06066068,141.86,141.82,4.80983257]
[1768503373745,0.06066068,141.86,141.82,4.56983257]
[1768503374268,0.24,141.88,141.78,3.09416342]
[1768503374269,0.05565391,141.83,141.78,3.09416342]
[1768503374450,0.05565391,141.82,141.78,1.89416342]
[1768503374651,7.10684556,141.82,141.78,1.89416342]
[1768503374963,7.1018963,141.82,141.78,4.56983257]
[1768503375138,7.1018963,141.82,141.78,1.89416342]
[1768503376566,0.05070465,141.82,141.78,11.62297034]
[1768503376865,0.04097602,141.86,141.82,1.89416342]
[1768503377042,0.24,141.87,141.82,4.56983257]
[1768503377388,0.04097602,141.86,141.82,4.56983257]
[1768503377861,0.04097602,141.86,141.82,1.89416342]
[1768503378073,0.03619535,141.84,141.8,4.56983257]
[1768503378266,0.03619535,141.84,141.8,4.80983257]
[1768503378667,2.70713874,141.85,141.8,4.80983257]
[1768503379045,2.70713874,141.85,141.8,2.91566915]
[1768503379249,2.70713874,141.85,141.81,1.89416342]
[1768503380769,7.0501974,141.84,141.79,4.46380448]
[1768503381073,7.0501974,141.84,141.78,4.70380448]
[1768503381074,2.67566915,141.83,141.78,4.70380448]
[1768503381575,4.17552627,141.83,141.78,6.2036616]
[1768503381870,29.09121718,141.84,141.79,1.78813533]
[1768503382190,7.2901974,141.84,141.8,5.9636616]
[1768503383377,7.0501974,141.84,141.8,5.9636616]
[1768503384163,7.0501974,141.84,141.8,1.78813533]
[1768503384689,7.0501974,141.84,141.8,5.9636616]
[1768503385471,7.0501974,141.84,141.8,13.01582026]
[1768503385676,7.0501974,141.84,141.8,1.78813533]
[1768503387282,7.04989041,141.85,141.82,1.7948486]
[1768503388362,11.22541668,141.85,141.82,1.7948486]
[1768503390382,7.04989041,141.85,141.82,1.7948486]
[1768503390777,11.22541668,141.85,141.82,1.7948486]
[1768503391481,17.6212875,141.88,141.82,1.7948486]
[1768503391781,7.04820975,141.88,141.83,1.7948486]
[1768503391972,11.22344814,141.89,141.85,1.7948486]
[1768503392295,4.17552627,141.9,141.86,1.7948486]
[1768503392583,11.22303008,141.9,141.86,1.7948486]
[1768503392788,7.04750381,141.9,141.86,1.7948486]
[1768503393080,11.22303008,141.9,141.86,1.7948486]
[1768503393288,4.17552627,141.89,141.86,1.7948486]
[1768503394870,4.17552627,141.88,141.85,2.0348486]
[1768503395073,4.17552627,141.89,141.85,2.0348486]
[1768503396375,11.22336811,141.89,141.85,2.0348486]
[1768503396872,7.04784184,141.89,141.85,2.0348486]
[1768503397072,11.22336811,141.89,141.85,2.0348486]
[1768503398493,17.61728588,141.91,141.85,2.0348486]
[1768503398790,4.17552627,141.89,141.85,2.0348486]
[1768503399991,17.61728588,141.91,141.85,2.0348486]
[1768503400293,4.17552627,141.89,141.85,2.0348486]
[1768503400470,17.61728588,141.91,141.85,2.0348486]
[1768503400670,4.17552627,141.89,141.85,2.0348486]
[1768503401992,4.17552627,141.89,141.86,1.7948486]
[1768503402371,4.17552627,141.9,141.86,1.7948486]
[1768503402577,11.2230681,141.9,141.86,1.7948486]
[1768503403196,4.17552627,141.91,141.88,1.7948486]
[1768503404292,7.04622322,141.92,141.88,1.7948486]
[1768503404589,24.66178128,141.92,141.88,1.7948486]
[1768503404778,4.17552627,141.91,141.88,1.7948486]
[1768503406372,7.04721634,141.9,141.88,1.7948486]
[1768503407892,11.22274261,141.9,141.87,1.7948486]
[1768503409793,4.17552627,141.88,141.86,1.2]
[1768503409995,4.17552627,141.88,141.85,2.9948486]
[1768503410176,17.61751327,141.91,141.85,2.9948486]
[1768503410382,4.17552627,141.89,141.86,1.7948486]
[1768503411971,11.22352219,141.89,141.86,1.7948486]
[1768503415883,7.04799592,141.89,141.86,1.7948486]
[1768503416372,11.22352219,141.89,141.86,1.7948486]
[1768503418292,4.17552627,141.89,141.86,1.7948486]
[1768503418787,4.17552627,141.88,141.86,1.7948486]
[1768503420594,4.17552627,141.89,141.86,1.7948486]
[1768503423709,21.79303954,141.91,141.86,1.7948486]
[1768503423889,21.79303954,141.91,141.87,1.7873843]
[1768503424482,7.0474278,141.9,141.87,1.7873843]
[1768503426304,4.17552627,141.89,141.86,2.9873843]
[1768503426514,4.17552627,141.87,141.83,2.9873843]
[1768503426803,4.17552627,141.84,141.82,1.7873843]
[1768503427603,0.22,141.87,141.82,1.7873843]
[1768503427604,4.17552627,141.85,141.82,1.7873843]
[1768503428176,0.22,141.87,141.83,1.7873843]
[1768503428397,4.17552627,141.86,141.83,1.7873843]
[1768503428596,4.17552627,141.85,141.81,1.7873843]
[1768503429206,4.17552627,141.84,141.81,1.7873843]
[1768503430116,24.89069086,141.87,141.81,1.7873843]
[1768503430282,7.04993911,141.85,141.81,1.7873843]
[1768503430690,11.22546538,141.85,141.81,1.7873843]
[1768503431584,7.04920344,141.86,141.82,1.7873843]
[1768503431807,11.22472971,141.86,141.82,1.7873843]
[1768503433006,7.04890521,141.87,141.82,1.7873843]
[1768503433211,4.17552627,141.86,141.82,1.7873843]
[1768503433916,11.22443148,141.87,141.83,1.7873843]
[1768503435319,11.22443148,141.87,141.84,1.7873843]
[1768503437214,4.17552627,141.86,141.84,1.7873843]
[1768503439230,4.17552627,141.85,141.84,1.7873843]
[1768503439410,11.22478244,141.86,141.84,1.7873843]
[1768503439813,7.04925617,141.86,141.84,1.7873843]
[1768503440019,4.17552627,141.86,141.84,1.7873843]
[1768503441396,9.72043264,141.86,141.84,1.7873843]
[1768503442633,9.72043264,141.86,141.83,1.66205705]
[1768503444616,2.67118209,141.85,141.83,1.66205705]
[1768503448026,2.67118209,141.85,141.83,1.70159283]
[1768503448327,2.67118209,141.84,141.82,1.42]
[1768503448522,2.67118209,141.84,141.82,0.22]
[1768503448727,2.67118209,141.84,141.82,1.92159283]
[1768503449308,2.67118209,141.83,141.81,1.2]
[1768503449617,2.67118209,141.82,141.8,1.92159283]
[1768503449812,2.67118209,141.82,141.8,1.70159283]
[1768503450235,9.72241444,141.82,141.8,1.70159283]
[1768503452450,2.67118209,141.82,141.8,1.70159283]
[1768503454038,24.6762843,141.84,141.8,1.70159283]
[1768503454217,2.67118209,141.83,141.8,1.70159283]
[1768503456140,2.67118209,141.82,141.8,1.70159283]
[1768503456939,2.67118209,141.81,141.78,2.90159283]
[1768503457147,24.67782957,141.83,141.77,1.70159283]
[1768503457315,2.67118209,141.8,141.77,8.75525978]
[1768503457511,2.67118209,141.8,141.77,9.95525978]
[1768503457738,2.67118209,141.8,141.78,1.70159283]
[1768503459633,2.67118209,141.79,141.76,1.70159283]
[1768503459976,7.05228075,141.8,141.76,1.70159283]
[1768503459977,2.67118209,141.78,141.76,1.70159283]
[1768503460327,2.67118209,141.77,141.76,1.70159283]
[1768503461151,2.67118209,141.77,141.75,1.70159283]
[1768503461855,7.0534024,141.78,141.75,1.70159283]
[1768503461856,17.63046544,141.8,141.75,1.70159283]
[1768503462030,2.67118209,141.77,141.75,1.70159283]
[1768503464659,9.72525809,141.77,141.73,69.20679998]
[1768503464965,2.67118209,141.74,141.71,1.90159283]
[1768503465171,2.67118209,141.73,141.71,0.2]
[1768503465549,2.67118209,141.75,141.7,1.90159283]
[1768503465740,2.67118209,141.72,141.7,1.90159283]
[1768503466056,2.67118209,141.72,141.69,0.2]
[1768503466057,7.05716302,141.7,141.69,0.2]
[1768503466853,27.59125266,141.7,141.64,1.70159283]
[1768503467170,27.59125266,141.7,141.63,1.70159283]
[1768503467171,2.67118209,141.65,141.63,1.70159283]
[1768503467473,24.92007057,141.7,141.62,1.70159283]
[1768503467474,0.22,141.67,141.62,1.70159283]
[1768503467637,2.67118209,141.65,141.62,1.70159283]
[1768503468360,7.05964286,141.66,141.62,1.70159283]
[1768503468558,2.67118209,141.65,141.62,1.70159283]
[1768503469946,2.67118209,141.64,141.62,1.70159283]
[1768503470147,9.73155894,141.64,141.61,1.70159283]
[1768503470355,9.73155894,141.64,141.6,1.90159283]
[1768503472469,9.73155894,141.64,141.61,1.76096768]
[1768503473258,2.67118209,141.64,141.61,1.76096768]
[1768503473754,7.05977429,141.65,141.61,1.76096768]
[1768503474071,2.67118209,141.63,141.6,1.96096768]
[1768503474258,2.67118209,141.62,141.6,0.2]
[1768503474456,2.6111821,141.62,141.6,0.2]
[1768503474946,9.67248289,141.62,141.6,0.2]
[1768503475146,2.67118209,141.61,141.58,1.76096768]
[1768503476245,2.67118209,141.62,141.59,1.76096768]
[1768503476874,9.7323921,141.62,141.59,1.76096768]
[1768503477053,9.67239211,141.62,141.59,1.76096768]
[1768503477450,9.67239211,141.62,141.57,1.76096768]
[1768503477451,7.06121001,141.62,141.57,1.76096768]
[1768503477672,7.06121001,141.62,141.54,17.66271873]
[1768503477673,2.67118209,141.59,141.55,8.82545535]
[1768503477874,0.22,141.61,141.56,1.76096768]
[1768503478053,2.67118209,141.59,141.56,1.76096768]
[1768503480181,7.06231935,141.6,141.56,1.76096768]
[1768503480182,9.73350144,141.6,141.56,1.76096768]
[1768503480559,2.67118209,141.58,141.54,9.04594805]
[1768503480876,2.67118209,141.58,141.55,1.76096768]
[1768503481076,7.06231935,141.6,141.54,1.76096768]
[1768503481077,2.67118209,141.57,141.54,1.76096768]
[1768503481376,7.06231935,141.6,141.52,7.28576367]
[1768503481377,0.22,141.58,141.52,1.76096768]
[1768503481673,2.67118209,141.57,141.53,1.76096768]
[1768503482559,9.73490043,141.57,141.53,1.76096768]
[1768503482774,2.67118209,141.56,141.53,1.76096768]
[1768503482961,7.06371834,141.57,141.53,1.76096768]
[1768503483359,2.67118209,141.56,141.53,1.76096768]
[1768503484252,2.61118208,141.56,141.53,1.76096768]
[1768503484454,2.67118209,141.56,141.53,1.76096768]
[1768503485358,9.73535111,141.56,141.53,1.76096768]
[1768503485552,9.73535111,141.56,141.51,1.76096768]
[1768503485757,2.67118209,141.53,141.51,1.76096768]
[1768503485969,24.72452505,141.56,141.51,1.76096768]
[1768503486160,2.67118209,141.54,141.51,1.76096768]
[1768503487161,7.06416902,141.56,141.51,1.76096768]
[1768503487360,2.67118209,141.54,141.51,1.76096768]
[1768503488283,7.06481682,141.55,141.51,1.76096768]
[1768503488284,2.67118209,141.53,141.51,1.76096768]
[1768503488464,2.67118209,141.52,141.5,0.2]
[1768503488781,2.61118209,141.51,141.48,0.2]
[1768503488973,2.67118209,141.48,141.46,1.76096768]
[1768503489171,0.22,141.52,141.46,1.76096768]
[1768503489372,2.67118209,141.48,141.46,1.76096768]
[1768503489573,2.67118209,141.48,141.44,1.76096768]
[1768503489778,2.67118209,141.47,141.44,1.76096768]
[1768503490168,9.73996745,141.47,141.44,1.76096768]
[1768503490591,0.22,141.49,141.44,2.67118209]
[1768503490792,0.22,141.49,141.45,1.76096768]
[1768503491163,2.89118209,141.49,141.45,1.76096768]
[1768503491587,0.22,141.49,141.45,8.83049441]
[1768503491790,17.65966181,141.57,141.48,1.76096768]
[1768503491967,17.65966181,141.57,141.45,24.96361651]
[1768503491968,2.67118209,141.54,141.5,1.76096768]
[1768503492173,2.67118209,141.53,141.5,1.76096768]
[1768503492678,2.67118209,141.54,141.5,1.76096768]
[1768503492875,9.73582355,141.55,141.51,1.76096768]
[1768503493064,2.67118209,141.54,141.51,1.76096768]
[1768503493893,2.67118209,141.55,141.51,1.76096768]
[1768503494792,35.31107149,141.6,141.53,1.76096768]
[1768503494793,17.65667297,141.59,141.53,1.76096768]
[1768503494975,2.89118209,141.58,141.53,1.76096768]
[1768503495170,0.22,141.58,141.54,1.76096768]
[1768503495370,2.89118209,141.58,141.54,1.76096768]
[1768503495692,2.67118209,141.55,141.52,1.76096768]
[1768503496091,2.67118209,141.53,141.49,1.76096768]
[1768503496290,2.67118209,141.53,141.47,20.34229771]
[1768503496291,2.67118209,141.51,141.48,1.76096768]
[1768503496480,2.61118208,141.51,141.48,1.76096768]
[1768503496793,2.67118209,141.51,141.48,8.82910425]
[1768503497487,2.67118209,141.53,141.49,1.76096768]
[1768503497692,7.28524532,141.54,141.44,1.76096768]
[1768503497693,2.67118209,141.5,141.44,1.76096768]
[1768503497869,2.67118209,141.48,141.44,8.83094082]
[1768503498069,2.67118209,141.47,141.44,8.83094082]
[1768503498893,2.67118209,141.47,141.44,1.76096768]
[1768503499272,9.73938591,141.48,141.44,1.76096768]
[1768503499710,2.67118209,141.48,141.44,8.83099637]
[1768503500398,2.67118209,141.47,141.44,8.83099637]
[1768503501076,2.67118209,141.48,141.44,8.83099637]
[1768503501266,2.67118209,141.46,141.43,0.2]
[1768503501471,2.67118209,141.46,141.4,1.60908277]
[1768503501472,2.67118209,141.44,141.4,1.60908277]
[1768503501675,2.83118206,141.43,141.38,1.60908277]
[1768503501879,0.22,141.43,141.38,1.60908277]
[1768503502081,0.22,141.43,141.39,1.60908277]
[1768503502281,0.22,141.44,141.4,1.60908277]
[1768503502498,2.67118209,141.45,141.4,1.60908277]
[1768503503000,2.89118209,141.46,141.41,1.60908277]
[1768503503177,9.96032922,141.46,141.42,7.07113562]
[1768503503373,11.48642546,141.46,141.42,7.07113562]
[1768503503569,4.19727833,141.45,141.41,8.68058013]